{"text_format":"3","workbook":"xlsx","n_sheets":4,"sheets":["8 класс","9 класс","10 класс","11 класс"],"not_rendered":{"defined_names":3},"read":"whole","date_system":"1900"}

{"sheet":"8 класс","index":0,"n_rows":18,"n_cols":8,"rows_kept":18,"merged":[[0,1,0,3]]}
[null,"8 класс Право (школьный этап)"]
[null,"Фамилия Имя и Отчество участника","школа ","баллы","%","ФИО учителя","макс кол-во баллов ",101]
["победитель","Седалина Екатерина Александровна","МБОУ \"Ерцевская СШ им. С.И. Бочарова\"",62,{"$f":"D3*100/101","v":{"v":61.386138613861384,"d":"61"}},"Черепанова Н.И."]
["победитель","Лопатина Варвара Викторовна","МБОУ \"Ерцевская СШ им. С.И. Бочарова\"",62,{"$f":"D4*100/101","v":{"v":61.386138613861384,"d":"61"}},"Черепанова Н.И."]
["призер","Сухнева Юлия Николаевна","МБОУ \"Ерцевская СШ им. С.И. Бочарова\"",55,{"v":54.45544554455446,"d":"54"},"Черепанова Н.И."]
["победитель","Терехина Вероника Евгеньевна ","МБОУ \"Коношеозерская СШ им. В.А.Корытова\"",53,{"v":52.475247524752476,"d":"52"},"Лыскова В.Ю."]
["участник","Смирнов Александр Дмитриевич ","МБОУ \"Коношеозерская СШ им. В.А.Корытова\"",43,{"v":42.57425742574257,"d":"43"},"Лыскова В.Ю."]
["участник","Носков Тимур Владиславович ","МБОУ \"Коношеозерская СШ им. В.А.Корытова\"",22,{"v":21.782178217821784,"d":"22"},"Лыскова В.Ю."]
["участник","Москвин Павел Николаевич ","МБОУ \"Коношеозерская СШ им. В.А.Корытова\"",19,{"v":18.81188118811881,"d":"19"},"Лыскова В.Ю."]
["участник","Чорный Денис Вячеславович ","МБОУ \"Коношеозерская СШ им. В.А.Корытова\"",15,{"v":14.851485148514852,"d":"15"},"Лыскова В.Ю."]
["участник","Ершова Анастасия Сергеевна","МБОУ \"Коношская  СШ имени Н.П. Лаверова\"",30,{"v":29.702970297029704,"d":"30"},"Кустовлянкина Марина Леонидовна"]
["участник","Андрейчикова Вероника Алексеевна","МБОУ \"Коношская  СШ имени Н.П. Лаверова\"",28,{"v":27.722772277227723,"d":"28"},"Кустовлянкина Марина Леонидовна"]
["участник","Румянцев Илья Владимирович","МБОУ \"Коношская  СШ имени Н.П. Лаверова\"",26,{"v":25.742574257425744,"d":"26"},"Кустовлянкина Марина Леонидовна"]
["участник","Григорьева Ксения Евгеньевна","МБОУ \"Коношская  СШ имени Н.П. Лаверова\"",25,{"v":24.752475247524753,"d":"25"},"Кустовлянкина Марина Леонидовна"]
["участник","Лучинская Елена Владимировна","МБОУ \"Коношская  СШ имени Н.П. Лаверова\"",21,{"v":20.792079207920793,"d":"21"},"Кустовлянкина Марина Леонидовна"]
["участник","Николайчик Тимофей Тимурович","МБОУ \"Коношская  СШ имени Н.П. Лаверова\"",20,{"v":19.801980198019802,"d":"20"},"Кустовлянкина Марина Леонидовна"]
["участник","Шушерин Никита Михайлович","МБОУ \"Коношская  СШ имени Н.П. Лаверова\"",17,{"v":16.831683168316832,"d":"17"},"Кустовлянкина Марина Леонидовна"]
[null,"Кокачев Климентий Васильевич","МБОУ \"Коношская  СШ имени Н.П. Лаверова\"",12,{"v":11.881188118811881,"d":"12"},"Кустовлянкина Марина Леонидовна"]

{"sheet":"9 класс","index":1,"n_rows":26,"n_cols":8,"rows_kept":26,"merged":[[0,1,0,3]]}
[null,"9 класс Право (школьный этап)"]
[null,"Фамилия Имя и Отчество участника","школа ","баллы","%","ФИО учителя","макс кол-во баллов ",101]
["участник","Цыпленкова Олеся Константиновна","МБОУ \"Ерцевская СШ им. С.И. Бочарова\"",41,{"$f":"D3*100/101","v":{"v":40.59405940594059,"d":"41"}},"Черепанова Н.И."]
["участник","Руссу Дарья Руслановна","МБОУ \"Ерцевская СШ им. С.И. Бочарова\"",36,{"$f":"D4*100/101","v":{"v":35.64356435643565,"d":"36"}},"Черепанова Н.И."]
["участник","Гуренко Дарья Александровна","МБОУ \"Ерцевская СШ им. С.И. Бочарова\"",24,{"v":23.762376237623762,"d":"24"},"Черепанова Н.И."]
["участник","Лигостаева Екатерина Анатольевна","МБОУ \"Ерцевская СШ им. С.И. Бочарова\"",13,{"v":12.871287128712872,"d":"13"},"Черепанова Н.И."]
["участник","Проворова Вероника Павловна","МБОУ \"Ерцевская СШ им. С.И. Бочарова\"",32,{"v":31.683168316831683,"d":"32"},"Черепанова Н.И."]
["участник","Аллахвердиева Диана Рафиковна ","МБОУ \"Коношеозерская СШ им. В.А.Корытова\"",27,{"v":26.73267326732673,"d":"27"},"Лыскова В.Ю."]
["участник","Синицына Василиса Владимировна ","МБОУ \"Коношеозерская СШ им. В.А.Корытова\"",19,{"v":18.81188118811881,"d":"19"},"Лыскова В.Ю."]
["участник","Маурин Илья Николаевич ","МБОУ \"Коношеозерская СШ им. В.А.Корытова\"",28,{"v":27.722772277227723,"d":"28"},"Лыскова В.Ю."]
["участник","Савонин Константин Денисович ","МБОУ \"Коношеозерская СШ им. В.А.Корытова\"",43,{"v":42.57425742574257,"d":"43"},"Лыскова В.Ю."]
["участник","Васильев Максим Иванович ","МБОУ \"Коношеозерская СШ им. В.А.Корытова\"",47,{"v":46.53465346534654,"d":"47"},"Лыскова В.Ю."]
["участник","Берлизеева Карина Александровна","МБОУ \"Коношская СШ имени Н.П. Лавёрова\"",25,{"v":24.752475247524753,"d":"25"},"Кустовлянкина Марина Леонидовна"]
["участник","Бурлакова Полина Сергеевна","МБОУ \"Коношская СШ имени Н.П. Лавёрова\"",40,{"v":39.603960396039604,"d":"40"},"Кустовлянкина Марина Леонидовна"]
["победитель","Вилакова Татьяна Викторовна","МБОУ \"Коношская СШ имени Н.П. Лавёрова\"",52,{"v":51.48514851485149,"d":"51"},"Кустовлянкина Марина Леонидовна"]
["участник","Вокуева Елизавета Дмитриевна","МБОУ \"Коношская СШ имени Н.П. Лавёрова\"",42,{"v":41.584158415841586,"d":"42"},"Кустовлянкина Марина Леонидовна"]
["участник","Ермолин Максим Николаевич","МБОУ \"Коношская СШ имени Н.П. Лавёрова\"",13,{"v":12.871287128712872,"d":"13"},"Кустовлянкина Марина Леонидовна"]
["участник","Капустина Анастасия Дмитриевна","МБОУ \"Коношская СШ имени Н.П. Лавёрова\"",38,{"v":37.62376237623762,"d":"38"},"Кустовлянкина Марина Леонидовна"]
["участник","Красов Арсений Сергеевич","МБОУ \"Коношская СШ имени Н.П. Лавёрова\"",22,{"v":21.782178217821784,"d":"22"},"Кустовлянкина Марина Леонидовна"]
["участник","Рюмшина Варвара Андреевна","МБОУ \"Коношская СШ имени Н.П. Лавёрова\"",27,{"v":26.73267326732673,"d":"27"},"Кустовлянкина Марина Леонидовна"]
["участник","Севостьянова Анастасия Алексеевна","МБОУ \"Коношская СШ имени Н.П. Лавёрова\"",32,{"v":31.683168316831683,"d":"32"},"Кустовлянкина Марина Леонидовна"]
["участник","Семова Ксения Николаевна","МБОУ \"Коношская СШ имени Н.П. Лавёрова\"",35,{"v":34.65346534653465,"d":"35"},"Мишарина Софья Романовна"]
["участник","Пинаевская Дарья Алексеевна","МБОУ \"Коношская СШ имени Н.П. Лавёрова\"",29,{"v":28.712871287128714,"d":"29"},"Кустовлянкина Марина Леонидовна"]
["участник","Порохина Анжелика Михайловна","МБОУ \"Коношская СШ имени Н.П. Лавёрова\"",20,{"v":19.801980198019802,"d":"20"},"Кустовлянкина Марина Леонидовна"]
["участник","Шалагина Наталья Андреевна","МБОУ \"Коношская СШ имени Н.П. Лавёрова\"",38,{"v":37.62376237623762,"d":"38"},"Кустовлянкина Марина Леонидовна"]
["участник","Юферева Анастасия Вадимовна","МБОУ \"Коношская СШ имени Н.П. Лавёрова\"",38,{"v":37.62376237623762,"d":"38"},"Кустовлянкина Марина Леонидовна"]

{"sheet":"10 класс","index":2,"n_rows":6,"n_cols":8,"rows_kept":6,"merged":[[0,1,0,3]]}
[null,"10 класс Право (школьный этап)"]
[null,"Фамилия Имя и Отчество участника","школа ","баллы","%","ФИО учителя","макс кол-во баллов ",85]
["победитель","Иванов Андрей Дмитриевич","МБОУ \"Подюжская СШ им. В.А. Абрамова\"",46,{"$f":"D3*100/85","v":{"v":54.11764705882353,"d":"54"}},"Бузько Т.В."]
["призер","Колесникович Карина Александровна ","МБОУ \"Коношеозерская СШ им. В.А.Корытова\"",61,{"$f":"D4*100/85","v":{"v":71.76470588235294,"d":"72"}},"Лыскова В.Ю."]
["победитель","Терехина Карина Евгеньевна ","МБОУ \"Коношеозерская СШ им. В.А.Корытова\"",76,{"v":89.41176470588235,"d":"89"},"Лыскова В.Ю."]
["призер","Вершинин Никита Михайлович ","МБОУ \"Коношеозерская СШ им. В.А.Корытова\"",75,{"v":88.23529411764706,"d":"88"},"Лыскова В.Ю."]

{"sheet":"11 класс","index":3,"n_rows":4,"n_cols":8,"rows_kept":4,"merged":[[0,1,0,3]]}
[null,"11 класс Право (школьный этап)"]
[null,"Фамилия Имя и Отчество участника","школа ","баллы","%","ФИО учителя","макс кол-во баллов ",100]
["участник","Вострякова Юлия Александровна","МБОУ \"Подюжская СШ им. В.А. Абрамова\"",43,{"$f":"D3*100/100","v":43},"Трофименко Л.Б."]
["участник","Ерина Арина Олеговна","МБОУ \"Коношская СШ имени Н.П. Лавёрова\"",32,{"$f":"D4*100/100","v":32},"Пантелеева Светлана Геннадьевна"]